bitfinex-derivatives/quotes_BTCF0:USTF0_20250501
["timestamp","ask_amount","ask_price","bid_price","bid_amount"]
[1746084545105,0.2431638,95032.0,95031.0,0.526726]
[1746084554530,0.03274,95032.0,95031.0,0.526726]
[1746084554928,0.06564,95032.0,95031.0,0.526726]
[1746084555426,0.2760638,95032.0,95031.0,0.526726]
[1746084557433,0.2760638,95032.0,95031.0,0.74074762]
[1746084558733,0.2760638,95032.0,95031.0,0.70774762]
[1746084558936,0.6368638,95032.0,95031.0,0.70774762]
[1746084559234,0.2760238,95032.0,95031.0,0.67644762]
[1746084560039,0.6368238,95032.0,95031.0,0.67644762]
[1746084561441,0.6368238,95032.0,95031.0,0.462426]
[1746084566732,0.2760238,95032.0,95031.0,0.462426]
[1746084569140,0.2760238,95032.0,95031.0,0.495526]
[1746084571448,1.43265796,95032.0,95031.0,0.495526]
[1746084571739,1.43265796,95032.0,95031.0,0.462426]
[1746084572043,1.43265796,95032.0,95031.0,0.252]
[1746084572337,1.79345796,95032.0,95031.0,0.462426]
[1746084572827,1.79345796,95032.0,95031.0,0.252]
[1746084573239,1.91545796,95032.0,95031.0,0.462426]
[1746084577235,1.79345796,95032.0,95031.0,0.462426]
[1746084595441,1.79345796,95032.0,95031.0,0.252]
[1746084595837,1.79345796,95032.0,95031.0,0.002]
[1746084597757,0.2104349,95027.0,95026.0,0.16048426]
[1746084598059,1.36706906,95027.0,95026.0,0.16048426]
[1746084598251,1.59430106,95027.0,95026.0,0.16048426]
[1746084598855,1.65660106,95027.0,95026.0,0.16048426]
[1746084599056,1.55136906,95027.0,95026.0,0.16248426]
[1746084599759,1.55136906,95027.0,95026.0,0.16448426]
[1746084599956,2.43610106,95027.0,95026.0,0.16448426]
[1746084600154,2.43610106,95027.0,95026.0,0.10860616]
[1746084600458,1.36708456,95020.0,95019.0,2e-08]
[1746084600752,1.72788456,95020.0,95019.0,2e-08]
[1746084600951,2.08312456,95020.0,95019.0,2e-08]
[1746084601163,0.2104637,95014.0,95013.0,2e-08]
[1746084601466,0.5712637,95014.0,95013.0,2e-08]
[1746084601659,1.83314587,95014.0,95013.0,2e-08]
[1746084602155,1.90576912,95014.0,95013.0,2e-08]
[1746084603151,1.90576912,95014.0,95013.0,0.00100002]
[1746084603849,1.90576912,95014.0,95013.0,0.00200002]
[1746084604454,1.90576912,95014.0,95013.0,0.002]
[1746084604662,2.32446912,95014.0,95013.0,0.002]
[1746084606158,2.31384587,95014.0,95013.0,0.002]
[1746084606555,2.20859786,95014.0,95013.0,0.002]
[1746084618359,2.20859786,95014.0,95013.0,0.0346]
[1746084621761,0.9899637,95014.0,95013.0,0.4250659]
[1746084621960,0.6292037,95014.0,95013.0,0.4250659]
[1746084622163,0.6292037,95014.0,95013.0,0.5470659]
[1746084622363,0.2104637,95014.0,95013.0,0.5470659]
[1746084623261,0.2105037,95014.0,95013.0,0.5470659]
[1746084624663,0.2105037,95014.0,95013.0,0.5798659]
[1746084628276,4e-05,95014.0,95013.0,0.5798659]
[1746084628473,0.2104602,95016.0,95015.0,0.2104614]
[1746084628666,0.2104602,95016.0,95015.0,0.4904614]
[1746084629068,0.2104602,95016.0,95015.0,0.5551614]
[1746084629268,0.2630703,95018.0,95017.0,0.210457]
[1746084629465,0.2630703,95018.0,95017.0,0.470457]
[1746084630176,0.2630703,95018.0,95017.0,0.592457]
[1746084630871,0.6291436,95024.0,95020.0,0.0526124]
[1746084631171,0.41875401,95024.0,95023.0,0.2104437]
[1746084631379,5.401e-05,95024.0,95023.0,0.4804437]
[1746084631966,0.3608,95030.0,95029.0,0.2104304]
[1746084632273,0.57128221,95030.0,95029.0,0.4704304]
[1746084632477,0.3608,95030.0,95029.0,0.4704304]
[1746084632774,4e-05,95030.0,95029.0,0.4704304]
[1746084632977,0.2104173,95035.0,95034.0,0.2104194]
[1746084633277,0.2104173,95035.0,95034.0,0.6124194]
[1746084633972,0.2104173,95035.0,95034.0,0.6757194]
[1746084634377,0.2114173,95035.0,95034.0,0.6757194]
[1746084636164,0.2124173,95035.0,95034.0,0.6757194]
[1746084636364,0.2445173,95035.0,95034.0,0.6757194]
[1746084640572,0.2770173,95035.0,95034.0,0.6757194]
[1746084643579,0.2770173,95035.0,95034.0,0.122]
[1746084643784,1.43365146,95035.0,95034.0,0.122]
[1746084644281,0.2104282,95030.0,95029.0,0.2104299]
[1746084644481,1.36706236,95030.0,95029.0,0.4804299]
[1746084645184,1.36706236,95030.0,95029.0,0.3324299]
[1746084645385,1.43026236,95030.0,95029.0,0.3324299]
[1746084646485,1.43026236,95030.0,95029.0,0.122]
[1746084647073,0.2104415,95024.0,95023.0,0.2104435]
[1746084647278,1.72787566,95024.0,95023.0,0.4604435]
[1746084647978,1.79337566,95024.0,95023.0,0.4604435]
[1746084648183,1.79337566,95024.0,95023.0,0.5824435]
[1746084648989,1.79337566,95024.0,95023.0,0.5844435]
[1746084649186,1.51743416,95024.0,95023.0,0.5864435]
[1746084649483,0.36085401,95037.0,95023.0,0.376]
[1746084649683,0.2435415,95024.0,95023.0,0.4286108]
[1746084649987,0.2435415,95024.0,95023.0,0.6503437]
[1746084650175,0.2435815,95024.0,95023.0,0.6503437]
[1746084650577,0.6043815,95024.0,95023.0,0.6483437]
[1746084650779,0.6043815,95024.0,95023.0,0.6503437]
[1746084652077,0.6043815,95024.0,95023.0,0.6483437]
[1746084652286,0.6043815,95024.0,95023.0,0.6503437]
[1746084656279,0.6365815,95024.0,95023.0,0.6503437]
[1746084661988,0.6043815,95024.0,95023.0,0.6503437]
[1746084664281,0.2435815,95024.0,95023.0,0.6503437]
[1746084664891,0.2435815,95024.0,95023.0,0.66594106]
[1746084665788,4e-05,95024.0,95023.0,1.02674382]
[1746084666181,4e-05,95024.0,95023.0,1.02681598]
[1746084666382,0.2104225,95033.0,95032.0,0.2104238]
[1746084666594,0.2104225,95033.0,95032.0,0.46609608]
[1746084666888,1.15663416,95033.0,95032.0,0.46609608]
[1746084667079,1.36705576,95033.0,95032.0,0.46609608]
[1746084667282,1.36705576,95033.0,95032.0,0.52804956]
[1746084668294,1.36805576,95033.0,95032.0,0.52804956]
[1746084668486,1.36905576,95033.0,95032.0,0.52804956]
[1746084668689,1.36805576,95033.0,95032.0,0.52804956]
[1746084668987,1.43225576,95033.0,95032.0,0.53304956]
[1746084669196,1.43125576,95033.0,95032.0,0.53304956]
[1746084669494,1.43225576,95033.0,95032.0,0.53904956]
[1746084671396,1.43225576,95033.0,95032.0,0.53910807]
[1746084673895,1.43225576,95033.0,95032.0,0.5233238]
[1746084678994,1.36905576,95033.0,95032.0,0.5233238]
[1746084679298,0.2124216,95033.0,95032.0,0.5233238]
[1746084683790,0.2124216,95033.0,95032.0,0.5223238]
[1746084684199,0.2124216,95033.0,95032.0,0.4912238]
[1746084684497,0.2430216,95033.0,95032.0,0.4912238]
[1746084695395,1.39965576,95033.0,95032.0,0.4912238]
[1746084699407,1.36905576,95033.0,95032.0,0.4912238]
[1746084701698,1.36905576,95033.0,95032.0,0.5220238]
[1746084702106,1.36905576,95033.0,95032.0,0.6440238]
[1746084703099,1.36905576,95033.0,95032.0,0.5220238]
[1746084705203,1.36905576,95033.0,95032.0,0.6440238]
[1746084714814,1.39935576,95033.0,95032.0,0.6440238]
[1746084720321,1.76015576,95033.0,95032.0,0.6440238]
[1746084726912,1.76015576,95033.0,95032.0,0.6132238]
[1746084728524,1.39935576,95033.0,95032.0,0.6132238]
[1746084735516,1.36905576,95033.0,95032.0,0.6460238]
[1746084744334,1.36905576,95033.0,95032.0,0.80637368]
[1746084748634,1.36905576,95033.0,95032.0,0.6460238]
[1746084750038,1.39945576,95033.0,95032.0,0.6460238]
[1746084758633,1.76025576,95033.0,95032.0,0.6460238]
[1746084759141,1.76025576,95033.0,95032.0,0.5240238]
[1746084759827,1.76025576,95033.0,95032.0,0.68445843]
[1746084762236,1.76025576,95033.0,95032.0,0.80645843]
[1746084763236,1.76025576,95033.0,95032.0,0.68445843]
[1746084763837,1.76025576,95033.0,95032.0,0.5240238]
[1746084765040,1.76025576,95033.0,95032.0,0.6460238]
[1746084765240,1.54983416,95033.0,95032.0,0.6460238]
[1746084765444,1.39945576,95033.0,95032.0,0.6460238]
[1746084767346,1.15863416,95033.0,95032.0,0.6460238]
[1746084767548,0.2124216,95033.0,95032.0,0.6460238]
[1746084768047,0.2124616,95033.0,95032.0,0.6460238]
[1746084769049,0.00204,95033.0,95032.0,0.6460238]
[1746084769238,0.2124616,95033.0,95032.0,0.6460238]
[1746084769438,0.2431616,95033.0,95032.0,0.6460238]
[1746084782345,0.2764616,95033.0,95032.0,0.6460238]
[1746084799268,0.2764216,95033.0,95032.0,0.6460238]
[1746084819062,0.2764216,95033.0,95032.0,0.6470238]
[1746084821665,0.2431216,95033.0,95032.0,0.6470238]
[1746084832470,1.39975576,95033.0,95032.0,0.6470238]
[1746084837788,1.39975576,95033.0,95032.0,0.66248661]
[1746084838883,1.39975576,95033.0,95032.0,0.6470238]
[1746084842890,1.39975576,95033.0,95032.0,0.66250768]
[1746084847403,1.39975576,95033.0,95032.0,0.6470238]
[1746084847589,1.39975576,95033.0,95032.0,0.66255075]
[1746084848094,1.39975576,95033.0,95032.0,0.54055075]
[1746084850183,1.39975576,95033.0,95032.0,0.66284868]
[1746084851199,1.39975576,95033.0,95032.0,0.54084868]
[1746084853096,1.39975576,95033.0,95032.0,0.54085821]
[1746084854794,1.39975576,95033.0,95032.0,0.5408399]
[1746084857100,1.39975576,95033.0,95032.0,0.6628399]
[1746084857284,0.2431216,95033.0,95032.0,0.6628399]
[1746084857489,0.2431616,95033.0,95032.0,0.6628399]
[1746084858588,0.2431616,95033.0,95032.0,0.66293486]
[1746084860502,0.2431616,95033.0,95032.0,0.66291054]
[1746084864090,0.2431616,95033.0,95032.0,0.66282004]
[1746084866000,0.2431616,95033.0,95032.0,0.66289094]
[1746084866895,0.03274,95033.0,95032.0,0.66289094]
[1746084867601,0.3608,95060.0,95032.0,0.86587294]
[1746084867801,0.0313,95043.0,95042.0,0.2104017]
[1746084867991,0.0313,95043.0,95042.0,0.82706884]
[1746084868189,0.0313,95043.0,95042.0,0.94906884]
[1746084868386,0.0313,95043.0,95042.0,1.01076884]
[1746084869305,0.03134,95043.0,95042.0,1.01076884]
[1746084870706,0.03134,95043.0,95042.0,1.01376884]
[1746084870895,0.03134,95043.0,95042.0,1.01676884]
[1746084871094,0.03234,95043.0,95042.0,1.01776884]
[1746084871494,0.03234,95043.0,95042.0,1.01834143]
[1746084871694,0.03334,95043.0,95042.0,1.01934143]
[1746084878005,0.03334,95043.0,95042.0,1.0029017]
[1746084880004,0.03334,95043.0,95042.0,1.01844574]
[1746084881608,0.06384,95043.0,95042.0,1.01844574]
[1746084881801,0.06384,95043.0,95042.0,1.0029017]
[1746084882001,0.06384,95043.0,95042.0,1.01842769]
[1746084884402,0.06384,95043.0,95042.0,1.0029017]
[1746084884601,0.2742394,95043.0,95042.0,1.0029017]
[1746084885109,0.2742394,95043.0,95042.0,0.6421017]
[1746084887611,0.06384,95043.0,95042.0,0.6421017]
[1746084891912,0.06384,95043.0,95042.0,0.4317]
[1746084892215,0.06384,95043.0,95042.0,0.6421017]
[1746084892909,1.43087356,95043.0,95042.0,0.5804017]
[1746084893414,1.43087356,95043.0,95042.0,0.4584017]
[1746084899018,1.43083356,95043.0,95042.0,0.4584017]
[1746084900316,1.43083356,95043.0,95042.0,0.4902017]
[1746084900515,1.43083356,95043.0,95042.0,0.5228017]
[1746084904422,1.18993416,95043.0,95042.0,0.5228017]
[1746084904612,1.18993416,95043.0,95042.0,0.53832193]
[1746084904920,1.18997416,95043.0,95042.0,0.53832193]
[1746084905110,1.18997416,95043.0,95042.0,0.66032193]
[1746084906517,0.00104,95043.0,95042.0,0.66032193]
[1746084906718,0.001,95046.0,95045.0,0.210395]
[1746084906920,0.001,95046.0,95045.0,0.85671523]
[1746084907123,0.00104,95046.0,95045.0,0.97871523]
[1746084907324,0.00104,95046.0,95045.0,1.04241523]
[1746084907924,0.00104,95046.0,95045.0,1.04237917]
[1746084908315,0.00104,95046.0,95045.0,1.04837917]
[1746084909125,0.0314,95048.0,95047.0,0.2103906]
[1746084909316,1.18803416,95048.0,95047.0,0.46587477]
[1746084909508,1.18803416,95048.0,95047.0,0.46594919]
[1746084910113,1.18803416,95048.0,95047.0,0.47647069]
[1746084911125,5.401e-05,95053.0,95049.0,0.052596]
[1746084911326,0.2412765,95054.0,95053.0,0.2103773]
[1746084911627,0.0309,95054.0,95053.0,0.49593589]
[1746084911817,1.39790926,95054.0,95053.0,0.49593589]
[1746084912222,1.39790926,95054.0,95053.0,0.52653589]
[1746084912821,1.39790926,95054.0,95053.0,0.52853589]
[1746084913221,1.39790926,95054.0,95053.0,0.5287915]
[1746084914420,1.43120926,95054.0,95053.0,0.5287915]
[1746084914621,1.43120926,95054.0,95053.0,0.5297915]
[1746084915227,1.43120926,95054.0,95053.0,0.3897915]
[1746084915622,1.43120926,95054.0,95053.0,0.2597915]
[1746084916021,1.43120926,95054.0,95053.0,0.4097915]
[1746084916625,1.43120926,95054.0,95053.0,0.3939773]
[1746084917831,1.22083416,95054.0,95053.0,0.3939773]
[1746084918030,1.43120926,95054.0,95053.0,0.3939773]
[1746084927433,1.43120926,95054.0,95053.0,0.2439773]
[1746084927732,1.43120926,95054.0,95053.0,0.4039773]
[1746084929944,1.43120926,95054.0,95053.0,0.2439773]
[1746084930141,1.43120926,95054.0,95053.0,0.4239773]
[1746084931334,1.43120926,95054.0,95053.0,0.2439773]
[1746084931535,1.43120926,95054.0,95053.0,0.3939773]
[1746084938343,1.43120926,95054.0,95053.0,0.4239773]
[1746084940653,1.43120926,95054.0,95053.0,0.4565773]
[1746084945452,1.43120926,95054.0,95053.0,0.61671361]
[1746084949159,1.43120926,95054.0,95053.0,0.4565773]
[1746084950353,0.2745751,95054.0,95053.0,0.4565773]
[1746084950552,1.43120926,95054.0,95053.0,0.4565773]
[1746084955264,1.79200926,95054.0,95053.0,0.4565773]
[1746084961265,1.76110926,95054.0,95053.0,0.4565773]
[1746084961466,1.15663416,95054.0,95053.0,0.4565773]
[1746084961667,1.36700926,95054.0,95053.0,0.4565773]
[1746084961967,1.36904926,95054.0,95053.0,0.4655773]
[1746084962170,1.36904926,95054.0,95053.0,0.5875773]
[1746084962671,1.36804926,95054.0,95053.0,0.5815773]
[1746084962873,1.36904926,95054.0,95053.0,0.5875773]
[1746084966277,1.36904926,95054.0,95053.0,0.4655773]
[1746084966869,1.15867416,95054.0,95053.0,0.4655773]
[1746084967069,1.15867416,95054.0,95053.0,0.5875773]
[1746084970280,0.0306,95057.0,95056.0,0.2103707]
[1746084970577,0.03064,95057.0,95056.0,0.3903707]
[1746084970765,1.39764266,95057.0,95056.0,0.3903707]
[1746084971274,1.39764266,95057.0,95056.0,0.4207707]
[1746084971464,1.39864266,95057.0,95056.0,0.4875707]
[1746084971663,1.39864266,95057.0,95056.0,0.4915707]
[1746084972965,1.18827416,95057.0,95056.0,0.4915707]
[1746084975579,1.18827416,95057.0,95056.0,0.4611707]
[1746084975979,1.18827416,95057.0,95056.0,0.4921707]
[1746084976682,1.15767416,95057.0,95056.0,0.4921707]
[1746084976872,1.18857416,95057.0,95056.0,0.4921707]
[1746084983184,1.18857416,95057.0,95056.0,0.6141707]
[1746084983986,1.18853416,95057.0,95056.0,0.6141707]
[1746084984281,1.15767416,95057.0,95056.0,0.6141707]
[1746084984485,1.15763416,95057.0,95056.0,0.6141707]
[1746084984685,1.15767416,95057.0,95056.0,0.6141707]
[1746084987175,1.15767416,95057.0,95056.0,0.77443237]
[1746084987584,1.18907416,95057.0,95056.0,0.77443237]
[1746084987785,1.39944266,95057.0,95056.0,0.77443237]
[1746084987973,1.18907416,95057.0,95056.0,0.74343237]
[1746084988378,1.22167416,95057.0,95056.0,0.74343237]
[1746084989675,1.22167416,95057.0,95056.0,0.5831707]
[1746084990189,1.43204266,95057.0,95056.0,0.5831707]
[1746084990590,0.2428085,95057.0,95056.0,0.5831707]
[1746084990892,0.210365,95059.0,95058.0,0.2103662]
[1746084991089,0.210365,95059.0,95058.0,0.4903662]
[1746084991585,0.210365,95059.0,95058.0,0.5561662]
[1746084992094,0.210365,95059.0,95058.0,0.5601662]
[1746084992283,0.210365,95059.0,95058.0,0.5651662]
[1746084992486,0.211365,95059.0,95058.0,0.5651662]
[1746084993893,0.243565,95059.0,95058.0,0.5651662]
[1746085031705,0.211365,95059.0,95058.0,0.5651662]
[1746085031897,0.211365,95059.0,95058.0,0.5957662]
[1746085038810,0.211365,95059.0,95058.0,0.75614347]
[1746085042417,0.211365,95059.0,95058.0,0.5957662]
[1746085042606,0.276965,95059.0,95058.0,0.5651662]
[1746085047313,0.276965,95059.0,95058.0,0.77875053]
[1746085047500,1.43359916,95059.0,95058.0,0.77875053]
[1746085052514,1.43359916,95059.0,95058.0,0.5651662]
[1746085071715,1.43359916,95059.0,95058.0,0.77875053]
[1746085085717,1.43359916,95059.0,95058.0,0.56838433]
[1746085086126,1.43359916,95059.0,95058.0,0.77875053]
[1746085086522,1.43359916,95059.0,95058.0,0.5651662]
[1746085090627,1.43359916,95059.0,95058.0,0.77875053]
[1746085092121,1.40069916,95059.0,95058.0,0.77875053]
[1746085094430,1.40069916,95059.0,95058.0,0.5651662]
[1746085097838,1.36799916,95059.0,95058.0,0.5651662]
[1746085106726,0.001,95059.0,95058.0,0.5651662]
[1746085106942,0.00104,95059.0,95058.0,0.6279262]
[1746085107140,0.00104,95059.0,95058.0,0.7499262]
[1746085109437,5.401e-05,95063.0,95062.0,0.2103574]
[1746085109636,5.401e-05,95063.0,95062.0,0.4903574]
[1746085109939,0.21814852,95065.0,95064.0,0.210353]
[1746085110142,0.21814852,95065.0,95064.0,0.490353]
[1746085110442,1.16443168,95065.0,95064.0,0.490353]
[1746085110641,1.16443168,95065.0,95064.0,0.554053]
[1746085111931,1.16443168,95065.0,95064.0,0.560053]
[1746085112242,1.37478248,95065.0,95064.0,0.560053]
[1746085112435,1.37478248,95065.0,95064.0,0.561053]
[1746085114638,1.16443168,95065.0,95064.0,0.561053]
[1746085116445,1.37478248,95065.0,95064.0,0.623813]
[1746085117143,1.37478248,95065.0,95064.0,0.41346]
[1746085117439,1.47078248,95065.0,95064.0,0.623813]
[1746085118142,1.47078248,95065.0,95064.0,0.593013]
[1746085128349,1.47078248,95065.0,95064.0,0.75325303]
[1746085130350,0.31414832,95065.0,95064.0,0.75325303]
[1746085130551,1.47078248,95065.0,95064.0,0.75325303]
[1746085131048,1.43848248,95065.0,95064.0,0.75325303]
[1746085131652,1.37478248,95065.0,95064.0,0.75325303]
[1746085131848,1.37478248,95065.0,95064.0,0.593013]
[1746085132154,1.37482248,95065.0,95064.0,0.593013]
[1746085134048,1.43592248,95065.0,95064.0,0.593013]
[1746085139358,1.43592248,95065.0,95064.0,0.43243124]
[1746085140471,1.43592248,95065.0,95064.0,0.36967124]
[1746085140670,1.43592248,95065.0,95064.0,0.43247124]
[1746085148175,1.43592248,95065.0,95064.0,0.15931824]
[1746085148376,1.43592248,95065.0,95064.0,0.43247124]
[1746085149779,1.43592248,95065.0,95064.0,0.22211824]
[1746085149971,1.43592248,95065.0,95064.0,0.43247124]
[1746085150779,1.43592248,95065.0,95064.0,0.36967124]
[1746085154576,1.43592248,95065.0,95064.0,0.15931824]
[1746085159276,1.43592248,95065.0,95064.0,0.36967124]
[1746085160984,1.79672248,95065.0,95064.0,0.36967124]
[1746085161588,1.79668248,95065.0,95064.0,0.36967124]
[1746085162584,1.79668248,95065.0,95064.0,0.1828408]
[1746085164670,1.84927068,95065.0,95062.0,0.1371784]
[1746085164875,0.68412472,95065.0,95064.0,0.210353]
[1746085165279,1.84075888,95065.0,95064.0,0.210353]
[1746085165988,1.84075888,95065.0,95064.0,0.450353]
[1746085166286,0.210353,95064.0,95063.0,0.2731552]
[1746085166487,1.36698716,95064.0,95063.0,0.2420552]
[1746085167589,1.36698716,95064.0,95063.0,0.2430552]
[1746085168389,1.36698716,95064.0,95063.0,0.4830552]
[1746085168688,1.36698716,95064.0,95063.0,0.2430552]
[1746085169490,1.36798716,95064.0,95063.0,0.2470552]
[1746085169983,1.36798716,95064.0,95063.0,0.4870552]
[1746085170184,1.36798716,95064.0,95063.0,0.0367]
[1746085171186,1.36798716,95064.0,95063.0,0.3067]
[1746085171387,1.36798716,95064.0,95063.0,0.0367]
[1746085171587,1.36798716,95064.0,95063.0,0.2967]
[1746085171788,1.36798716,95064.0,95063.0,0.0367]
[1746085173592,1.36798716,95064.0,95063.0,0.2470552]
[1746085175893,1.36798716,95064.0,95063.0,0.2570552]
[1746085180602,1.36798716,95064.0,95063.0,0.41734571]
[1746085181102,1.72878716,95064.0,95063.0,0.41734571]
[1746085182503,1.36798716,95064.0,95063.0,0.41734571]
[1746085182803,1.72878716,95064.0,95063.0,0.41734571]
[1746085185017,1.76018716,95064.0,95063.0,0.41734571]
[1746085185905,1.39938716,95064.0,95063.0,0.41734571]
[1746085186093,1.76018716,95064.0,95063.0,0.41734571]
[1746085189412,1.76018716,95064.0,95063.0,0.2570552]
[1746085190005,1.39938716,95064.0,95063.0,0.2570552]
[1746085190201,1.76018716,95064.0,95063.0,0.2570552]
[1746085191911,1.39938716,95064.0,95063.0,0.2570552]
[1746085194413,1.76018716,95064.0,95063.0,0.2570552]
[1746085197315,1.39938716,95064.0,95063.0,0.2570552]
[1746085202819,1.43048716,95064.0,95063.0,0.2570552]
[1746085206221,1.43048716,95064.0,95063.0,0.0467]
[1746085206812,1.43048716,95064.0,95063.0,0.0799]
[1746085208925,1.43048716,95064.0,95063.0,0.2902552]
[1746085210819,1.43048716,95064.0,95063.0,0.0799]
[1746085216444,1.43048716,95064.0,95063.0,0.2902552]
[1746085217538,1.43048716,95064.0,95063.0,0.0799]
[1746085223644,1.43048716,95064.0,95063.0,0.0809]
[1746085247453,1.43048716,95064.0,95063.0,0.2912552]
[1746085249561,1.39938716,95064.0,95063.0,0.2912552]
[1746085249759,1.18903416,95064.0,95063.0,0.2912552]
[1746085249954,0.211353,95064.0,95063.0,0.2912552]
[1746085250154,0.001,95064.0,95063.0,0.4132552]
[1746085250354,0.211393,95064.0,95063.0,0.4132552]
[1746085260369,0.244393,95064.0,95063.0,0.4132552]
[1746085261366,0.244393,95064.0,95063.0,0.2912552]
[1746085266279,0.275893,95064.0,95063.0,0.0809]
[1746085266469,0.275893,95064.0,95063.0,0.2912552]
[1746085270281,0.275893,95064.0,95063.0,0.45156998]
[1746085276385,1.43252716,95064.0,95063.0,0.45156998]
[1746085280684,1.43252716,95064.0,95063.0,0.29137289]
[1746085280882,1.43252716,95064.0,95063.0,0.57137289]
[1746085281583,1.43248716,95064.0,95063.0,0.57137289]
[1746085281778,1.43248716,95064.0,95063.0,0.41105811]
[1746085290186,1.43248716,95064.0,95063.0,0.57139874]
[1746085290586,1.43248716,95064.0,95063.0,0.60419874]
[1746085293990,1.43248716,95064.0,95063.0,0.44385811]
[1746085324315,1.22213416,95064.0,95063.0,0.44385811]
[1746085324514,0.0655,95064.0,95063.0,0.47675811]
[1746085324922,0.275853,95064.0,95063.0,0.47675811]
[1746085325721,0.0655,95064.0,95063.0,0.47675811]
[1746085325928,7.291e-05,95072.0,95069.0,0.2103419]
[1746085326224,0.6290397,95070.0,95069.0,0.5723419]
[1746085326423,0.2103397,95070.0,95069.0,0.5723419]
[1746085326630,0.2103797,95070.0,95069.0,0.5723419]
[1746085326818,0.2103797,95070.0,95069.0,0.6050419]
[1746085327324,0.2103797,95070.0,95069.0,0.6060419]
[1746085327524,1.72781386,95070.0,95069.0,0.45838]
[1746085327723,1.72781386,95070.0,95069.0,0.6687219]
[1746085328028,0.2103797,95070.0,95069.0,0.6687219]
[1746085328329,0.21834129,95070.0,95069.0,0.6687219]
[1746085328826,0.21834129,95070.0,95069.0,0.6697219]
[1746085329028,0.25044129,95070.0,95069.0,0.6697219]
[1746085329229,0.25044129,95070.0,95069.0,0.5477219]
[1746085331518,1.40707545,95070.0,95069.0,0.5477219]
[1746085335521,1.43857545,95070.0,95069.0,0.5477219]
[1746085343138,1.22823575,95070.0,95069.0,0.5477219]
[1746085343538,0.06364,95070.0,95069.0,0.5477219]
[1746085343740,0.2739797,95070.0,95069.0,0.5477219]
[1746085343940,0.2739397,95070.0,95069.0,0.5477219]
[1746085344131,0.2739797,95070.0,95069.0,0.5477219]
[1746085345435,0.06364,95070.0,95069.0,0.5477219]
[1746085346029,4e-05,95070.0,95069.0,0.5477219]
[1746085346230,4e-05,95070.0,95069.0,0.6697219]
[1746085347241,4e-05,95070.0,95069.0,0.5477219]
[1746085348131,0.06524,95070.0,95069.0,0.5477219]
[1746085349133,0.09654,95070.0,95069.0,0.5477219]
[1746085349327,0.3068797,95070.0,95069.0,0.5477219]
[1746085349531,0.09654,95070.0,95069.0,0.5477219]
[1746085350238,0.3068797,95070.0,95069.0,0.5477219]
[1746085353244,0.3068797,95070.0,95069.0,0.6697219]
[1746085354142,0.3068797,95070.0,95069.0,0.5477219]
[1746085360345,0.3068797,95070.0,95069.0,0.5779219]
[1746085362447,1.46351386,95070.0,95069.0,0.5779219]
[1746085370351,0.3068797,95070.0,95069.0,0.5779219]
[1746085370556,1.46351386,95070.0,95069.0,0.5779219]
[1746085371754,1.46351386,95070.0,95069.0,0.76143935]
[1746085374155,1.46347386,95070.0,95069.0,0.76143935]
[1746085376151,1.46347386,95070.0,95069.0,0.5477219]
[1746085377165,1.46347386,95070.0,95069.0,0.33754]
[1746085377350,1.46347386,95070.0,95069.0,0.5478819]
[1746085378054,1.82427386,95070.0,95069.0,0.5478819]
[1746085378347,1.82427386,95070.0,95069.0,0.2450419]
[1746085378548,1.82427386,95070.0,95069.0,0.002]
[1746085378753,1.82427386,95070.0,95069.0,0.06484]
[1746085379159,1.94627386,95070.0,95069.0,0.06484]
[1746085379461,2.36497386,95070.0,95069.0,0.06484]
[1746085381561,2.36497386,95070.0,95069.0,0.2751819]
[1746085384567,2.36497386,95070.0,95069.0,0.06484]
[1746085386165,2.24297386,95070.0,95069.0,0.09624]
[1746085387760,2.00133416,95070.0,95069.0,0.4865819]
[1746085387960,1.85091386,95070.0,95069.0,0.4865819]
[1746085388153,0.48394,95070.0,95069.0,0.4865819]
[1746085388358,0.4839,95070.0,95069.0,0.4865819]
[1746085388566,0.48394,95070.0,95069.0,0.4865819]
[1746085388968,0.48394,95070.0,95069.0,0.4237419]
[1746085389170,0.48394,95070.0,95069.0,0.4865019]
[1746085389368,0.6942797,95070.0,95069.0,0.4865019]
[1746085390964,0.2755797,95070.0,95069.0,0.4865019]
[1746085392871,0.2755797,95070.0,95069.0,0.24276]
[1746085393063,0.2755797,95070.0,95069.0,0.4531019]
[1746085395766,0.03224,95070.0,95069.0,0.4531019]
[1746085395958,0.2425797,95070.0,95069.0,0.4531019]
[1746085396772,0.2425797,95070.0,95069.0,0.4863019]
[1746085396977,1.39921386,95070.0,95069.0,0.18]
[1746085397273,1.39921386,95070.0,95069.0,0.4531019]
[1746085397868,1.43181386,95070.0,95069.0,0.4531019]
[1746085403080,1.43181386,95070.0,95069.0,0.3903419]
[1746085403281,1.43181386,95070.0,95069.0,0.4531019]
[1746085412191,1.43181386,95070.0,95069.0,0.4854019]
[1746085419108,1.43177386,95070.0,95069.0,0.4854019]
[1746085421113,1.43177386,95070.0,95069.0,0.69921406]
[1746085428425,1.43177386,95070.0,95069.0,0.4854019]
[1746085435120,1.43177386,95070.0,95069.0,0.2123]
[1746085435313,1.43177386,95070.0,95066.0,0.21381216]
[1746085435314,0.2103463,95067.0,95066.0,0.21381216]
[1746085435516,1.36698046,95067.0,95066.0,0.48692066]
[1746085436216,1.43028046,95067.0,95066.0,0.48692066]
[1746085436727,1.43028046,95067.0,95066.0,0.48792066]
[1746085437827,1.43128046,95067.0,95066.0,0.48992066]
[1746085440129,1.43128046,95067.0,95066.0,0.2761085]
[1746085440432,1.43128046,95067.0,95066.0,0.5261085]
[1746085441226,1.43128046,95067.0,95066.0,0.31576]
[1746085441430,1.43128046,95067.0,95066.0,0.5261085]
[1746085452533,1.43128046,95067.0,95066.0,0.253]
[1746085452736,1.43128046,95067.0,95066.0,0.31576]
[1746085454334,1.43128046,95067.0,95066.0,0.34576]
[1746085461744,1.43128046,95067.0,95066.0,0.5561085]
[1746085463146,1.43128046,95067.0,95066.0,0.34576]
[1746085464644,1.43128046,95067.0,95066.0,0.5561085]
[1746085467049,1.43128046,95067.0,95066.0,0.31576]
[1746085467453,0.2103508,95065.0,95064.0,0.21381216]
[1746085467651,1.36698496,95065.0,95064.0,0.21381216]
[1746085468151,1.39978496,95065.0,95064.0,0.21381216]
[1746085468342,1.46418496,95065.0,95064.0,0.21381216]
[1746085468944,1.46518496,95065.0,95064.0,0.21581216]
[1746085469141,1.46518496,95065.0,95064.0,0.21681216]
[1746085470243,1.46518496,95065.0,95064.0,0.003]
[1746085473160,1.88388496,95065.0,95064.0,0.003]
[1746085473953,1.88388496,95065.0,95063.0,0.06276]
[1746085474152,0.2103618,95060.0,95059.0,0.12925822]
[1746085474352,1.36699596,95060.0,95059.0,0.42201822]
[1746085475060,1.46229596,95060.0,95059.0,0.29276]
[1746085475263,1.46229596,95060.0,95059.0,0.29476]
[1746085475764,1.46329596,95060.0,95059.0,0.29776]
[1746085475965,1.46329596,95060.0,95059.0,0.508124]
[1746085476157,1.46329596,95060.0,95059.0,0.29776]